bitfinex/quotes_ETHUSD_20220119
["timestamp","ask_amount","ask_price","bid_price","bid_amount"]
[1642589987530,0.1298,3078.0,3076.9,7.97]
[1642589987531,0.13832635,3078.0,3076.9,9.42251]
[1642589987726,0.13832635,3078.0,3077.2,1.62434]
[1642589988025,0.13832635,3078.0,3077.2,1.92434]
[1642589988026,0.00795793,3077.9,3077.2,1.92434]
[1642589988223,0.1298,3077.8,3077.2,1.92434]
[1642589988426,0.13718951,3077.8,3077.3,0.1224]
[1642589988628,0.00682108,3077.7,3077.3,2.22788]
[1642589988826,0.00682108,3077.7,3077.4,0.1272]
[1642589989027,0.1298,3078.5,3077.6,6.9]
[1642589989231,0.1298,3078.5,3077.8,0.06835671]
[1642589989428,0.8121,3079.1,3078.4,2.11436428]
[1642589989429,0.1298,3078.8,3078.4,2.11436428]
[1642589989632,0.1298,3078.8,3078.4,2.41436428]
[1642589989830,0.13662108,3078.8,3078.4,0.3]
[1642589990028,0.13662108,3078.8,3078.3,0.77]
[1642589990796,0.13662108,3078.8,3078.3,0.3]
[1642589990992,2.19769517,3078.5,3077.9,0.77]
[1642589991194,2.19769517,3078.5,3077.9,0.47]
[1642589991495,0.00454739,3078.4,3077.9,0.47]
[1642589991993,0.00397896,3078.3,3077.9,0.5916]
[1642589992197,0.00397896,3078.3,3077.9,0.47]
[1642589992394,2.15167413,3078.5,3078.0,3.6]
[1642589992595,0.00223023,3078.9,3078.0,0.30170527]
[1642589992596,0.1298,3078.4,3078.0,0.30170527]
[1642589992795,0.1298,3078.8,3078.1,0.00113684]
[1642589992995,0.0022737,3078.7,3078.1,0.00113684]
[1642589993195,0.0022737,3078.7,3078.2,0.1298]
[1642589993396,0.00170527,3078.6,3078.2,0.1298]
[1642589993597,1.2613955,3078.4,3078.2,0.1298]
[1642589993797,1.3911955,3078.4,3078.2,0.1298]
[1642589994221,1.3911955,3078.4,3078.2,0.0001]
[1642589994623,1.3911955,3078.4,3078.1,0.00113684]
[1642589995020,1.3911955,3078.4,3077.2,0.00625265]
[1642589995221,0.1298,3078.4,3077.2,0.00625265]
[1642589995425,0.94212,3078.4,3077.2,0.00625265]
[1642589995622,0.94212,3078.4,3077.2,0.13105265]
[1642589995821,0.1298,3078.4,3077.2,0.14145265]
[1642589996021,0.1298,3078.4,3077.3,0.00568423]
[1642589996222,2.15277316,3078.1,3077.3,0.13288423]
[1642589996424,1.34350273,3078.3,3077.4,0.1298]
[1642589996622,0.00113685,3078.5,3077.4,0.26691581]
[1642589996825,0.00113685,3078.5,3077.5,0.13014738]
[1642589997025,0.00113685,3078.5,3077.6,0.16266]
[1642589997225,0.00113685,3078.5,3077.6,3.91844052]
[1642589997430,0.00113685,3078.5,3077.7,3.17251635]
[1642589997626,0.00113685,3078.5,3078.2,1.38212951]
[1642589998076,0.00113685,3078.5,3078.3,0.3]
[1642589998880,0.00113685,3078.5,3078.4,5.10701914]
[1642589999280,0.00113685,3078.5,3078.4,6.00331914]
[1642590000282,0.00113685,3078.5,3078.4,3.20331914]
[1642590000481,0.00113685,3078.5,3078.4,2.30701914]
[1642590001583,0.00113685,3078.5,3078.0,6.89985183]
[1642590001584,0.00113685,3078.5,3077.8,0.12844211]
[1642590001835,0.13093685,3078.5,3078.4,0.01070422]
[1642590002034,0.13093685,3078.5,3077.8,0.00284211]
[1642590002035,0.00342478,3078.2,3077.8,0.00284211]
[1642590002433,0.01256904,3078.0,3077.8,0.00284211]
[1642590002638,0.01256904,3078.0,3077.8,2.17850795]
[1642590002833,0.1298,3078.1,3077.8,0.00284211]
[1642590003231,0.1298,3078.1,3077.6,0.8987]
[1642590003232,6.9,3078.0,3077.6,0.8987]
[1642590003433,0.1298,3078.1,3077.6,0.0001]
[1642590003434,5.11255881,3077.7,3077.6,0.0001]
[1642590003634,5.24235881,3077.7,3077.6,0.0001]
[1642590003830,0.14235881,3077.7,3077.6,0.0001]
[1642590004431,5.29235881,3077.7,3077.6,0.0001]
[1642590004634,8.80560149,3077.7,3077.6,0.0001]
[1642590004832,5.29235881,3077.7,3077.6,0.0001]
[1642590005031,5.29235881,3077.7,3076.1,3.8013]
[1642590005032,5.1,3077.6,3076.2,0.1298]
[1642590005240,0.81259,3077.5,3076.2,0.1298]
[1642590005466,0.01255881,3077.7,3076.3,0.81248]
[1642590005467,0.13,3077.4,3076.3,0.81248]
[1642590005669,0.13,3077.6,3077.4,2.13199354]
[1642590005869,2.66279,3077.5,3077.4,2.13199354]
[1642590006071,2.6298,3077.5,3077.4,2.13199354]
[1642590006271,0.1298,3077.5,3077.4,2.13199354]
[1642590006471,0.1298,3077.5,3077.4,2.13426724]
[1642590006870,0.81249,3077.6,3077.4,2.13426724]
[1642590006871,0.94229,3077.6,3077.4,2.13426724]
[1642590007072,0.81249,3077.6,3077.4,2.13426724]
[1642590007274,0.81249,3077.6,3077.5,0.00170527]
[1642590007878,1.62488,3078.0,3077.5,0.00170527]
[1642590008077,0.14212945,3078.1,3077.5,0.30170527]
[1642590008078,0.1298,3078.1,3077.5,0.30170527]
[1642590008276,0.00342478,3078.2,3077.5,0.30170527]
[1642590008277,0.00342478,3078.2,3077.6,0.1298]
[1642590008473,0.00113684,3078.0,3077.6,0.00113685]
[1642590008874,0.00113684,3078.0,3077.9,2.01402756]
[1642590009353,0.19297486,3078.0,3077.9,2.01402756]
[1642590009552,0.38481288,3078.0,3077.9,2.01402756]
[1642590010152,0.38481288,3078.0,3077.9,2.31402756]
[1642590011057,0.38481288,3078.0,3077.9,3.58689098]
[1642590011255,0.38481288,3078.0,3077.9,2.31402756]
[1642590011756,0.38481288,3078.0,3077.9,2.01402756]
[1642590013079,0.38481288,3078.0,3077.6,0.00113685]
[1642590013279,0.39700486,3078.0,3077.6,0.00113685]
[1642590013476,0.39700486,3078.0,3077.5,0.00170527]
[1642590013678,0.39700486,3078.0,3077.5,0.30170527]
[1642590014078,0.39700486,3078.0,3077.6,0.00113685]
[1642590014281,0.19297486,3078.0,3077.8,1.32303757]
[1642590014482,0.00342478,3078.2,3077.9,6.9]
[1642590014684,3.9765,3078.9,3078.0,4.8798]
[1642590014879,0.1298,3079.0,3078.0,5.05]
[1642590015077,0.00341054,3078.6,3078.0,5.05]
[1642590015279,0.00341054,3078.6,3078.4,1.45470584]
[1642590015479,2.22517778,3079.1,3078.4,1.75470584]
[1642590015480,0.00284212,3078.5,3078.4,1.75470584]
[1642590015881,0.00568424,3078.5,3078.4,1.75470584]
[1642590016081,0.00568424,3078.5,3078.4,2.00700584]
[1642590016280,0.00568424,3078.5,3078.4,6.70700584]
[1642590016935,0.00568424,3078.5,3078.4,0.2523]
[1642590017134,0.00568424,3078.5,3078.1,1.84792255]
[1642590017336,0.1298,3078.4,3078.1,1.84792255]
[1642590017535,0.0022737,3078.4,3078.1,1.84792255]
[1642590017735,0.00170527,3078.3,3078.1,1.84792255]
[1642590017935,0.00170527,3078.3,3078.2,4.21648607]
[1642590018135,0.1298,3078.9,3078.2,4.21648607]
[1642590018340,0.1298,3078.9,3078.8,2.2121906]
[1642590018536,0.68973273,3078.7,3078.3,0.81203]
[1642590018734,0.68973273,3078.7,3078.3,1.11203]
[1642590018938,0.00341054,3078.6,3078.3,1.11203]
[1642590019335,0.00284212,3078.5,3078.3,1.11203]
[1642590019536,0.00284212,3078.5,3078.3,0.3]
[1642590019836,0.19411172,3078.4,3078.3,0.3]
[1642590020235,0.19411172,3078.4,3078.3,2.62504082]
[1642590021508,0.68973273,3078.7,3078.4,6.9]
[1642590021707,0.68973273,3078.7,3078.5,3.71439163]
[1642590021907,0.00113684,3078.6,3078.4,0.1298]
[1642590022105,0.00113684,3078.6,3078.3,2.62504082]
[1642590022908,0.00113684,3078.6,3078.3,4.24906082]
[1642590023512,0.00113684,3078.6,3078.3,4.37886082]
[1642590024325,0.00113684,3078.6,3078.3,5.35789282]
[1642590024526,0.00113684,3078.6,3078.3,5.61029282]
[1642590024723,0.00113684,3078.6,3078.4,2.9277921]
[1642590024928,0.1298,3079.5,3078.7,0.81193]
[1642590025127,0.1298,3079.5,3078.8,1.96910941]
[1642590025326,0.00454739,3079.4,3078.8,1.96910941]
[1642590025525,0.13434739,3079.4,3078.8,1.96910941]
[1642590025728,0.00397897,3079.3,3078.8,1.96910941]
[1642590025930,0.00397897,3079.3,3079.1,1.54576756]
[1642590026139,2.85463053,3079.7,3079.1,1.54576756]
[1642590026140,0.00341054,3079.2,3079.1,1.54576756]
[1642590026332,0.00341054,3079.2,3078.8,1.96910941]
[1642590026731,0.00284212,3079.1,3078.8,1.96910941]
[1642590027130,0.1298,3079.2,3078.8,1.96910941]
[1642590027131,0.0022737,3079.0,3078.8,1.96910941]
[1642590027532,0.00170527,3078.9,3078.8,1.96910941]
[1642590029176,0.01581599,3079.5,3078.9,6.9]
[1642590029378,8.13117949,3080.6,3079.3,0.01201464]
[1642590029379,2.46831213,3080.1,3079.3,0.01201464]
[1642590029578,3.6820751,3080.6,3079.3,0.01201464]
[1642590029579,2.46831213,3080.4,3079.4,0.20371895]
[1642590029774,2.46831213,3080.5,3079.5,0.47]
[1642590029978,0.00852636,3080.4,3080.3,1.94889589]
[1642590030378,2.47740691,3080.5,3080.0,1.62308]
[1642590030578,2.54811213,3080.4,3079.5,0.1298]
[1642590030777,0.0798,3080.4,3079.4,0.1298]
[1642590030975,2.47627006,3080.3,3079.4,0.1298]
[1642590031180,0.00795793,3080.3,3079.5,0.81174]
[1642590031380,2.59811213,3080.5,3080.2,2.22239833]
[1642590031576,2.59811213,3080.5,3079.7,1.62326]
[1642590031856,0.00852636,3080.4,3079.7,1.62326]
[1642590032253,0.00795793,3080.3,3079.7,1.62326]
[1642590032453,0.00795793,3080.3,3079.8,0.81167]
[1642590032653,0.00738951,3080.2,3079.9,1.82411054]
[1642590033053,0.00682109,3080.1,3079.9,1.82411054]
[1642590033454,2.12297231,3080.0,3079.9,1.82411054]
[1642590033655,2.12297231,3080.0,3079.9,2.82411054]
[1642590033856,2.12297231,3080.0,3079.9,1.95391054]
[1642590034059,0.00625266,3080.0,3079.9,9.97391054]
[1642590034253,0.00625266,3080.0,3079.9,10.27391054]
[1642590035255,0.00625266,3080.0,3079.9,3.84551054]
[1642590035474,0.00625266,3080.0,3079.9,3.72391054]
[1642590035674,0.00625266,3080.0,3079.9,3.84551054]
[1642590035878,0.00625266,3080.0,3079.9,3.42391054]
[1642590036079,0.00625266,3080.0,3079.9,3.72391054]
[1642590036277,0.00625266,3080.0,3079.9,3.42391054]
[1642590036682,0.00625266,3080.0,3079.9,2.42391054]
[1642590036978,0.00625266,3080.0,3079.9,9.32391054]
[1642590038178,0.00625266,3080.0,3079.9,10.32391054]
[1642590039078,0.00625266,3080.0,3079.9,10.44551054]
[1642590039330,0.00625266,3080.0,3079.9,11.50161054]
[1642590039524,0.00625266,3080.0,3079.9,11.38001054]
[1642590040730,0.00625266,3080.0,3079.9,4.48001054]
[1642590040928,0.00625266,3080.0,3079.9,6.57391054]
[1642590041629,0.00625266,3080.0,3079.9,3.32643257]
[1642590042842,1.535123,3081.1,3080.2,0.81135]
[1642590043079,1.535123,3081.1,3080.4,0.06771272]
[1642590043280,1.535123,3081.1,3080.5,0.5998]
[1642590043580,1.535123,3081.1,3080.6,0.04926618]
[1642590043781,1.535123,3081.1,3080.7,2.50570117]
[1642590043992,0.00424464,3081.8,3080.7,2.50570117]
[1642590043993,0.00424464,3081.8,3080.8,9.43830687]
[1642590044180,0.00424464,3081.8,3081.0,0.06724217]
[1642590044385,0.0096632,3081.7,3081.2,0.06306107]
[1642590044580,0.0096632,3081.7,3081.3,0.80157927]
[1642590044782,0.00909478,3081.6,3081.3,1.61262927]
[1642590044980,0.00909478,3081.6,3081.5,7.06266]
[1642590045181,0.00424464,3081.8,3081.5,8.6958517]
[1642590045379,0.00424464,3081.8,3081.6,0.17906796]
[1642590045579,0.0096632,3081.7,3081.6,1.17906796]
[1642590045783,2.5349352,3082.2,3081.7,12.8]
[1642590045980,2.5349352,3082.2,3081.8,0.68210329]
[1642590046179,0.0022737,3082.1,3081.8,2.41065]
[1642590046581,0.0022737,3082.1,3081.8,0.47]
[1642590046582,0.13140527,3082.0,3081.8,0.47]
[1642590046842,0.13140527,3082.0,3081.5,0.2843]
[1642590047046,0.00113685,3081.9,3081.5,0.2843]
[1642590048338,0.00113685,3081.9,3081.6,0.81118]
[1642590048750,0.00113685,3081.9,3081.6,1.28118]
[1642590048951,5.42138145,3085.7,3081.9,6.9]
[1642590049147,1.6257533,3085.5,3085.4,5.871]
[1642590049349,5.42460988,3086.4,3085.4,5.871]
[1642590049350,1.09052995,3086.6,3085.7,0.93219628]
[1642590049551,16.67347179,3087.0,3085.6,1.61999]
[1642590049552,14.77201641,3087.0,3086.2,0.06397745]
[1642590049746,0.3718,3087.8,3087.5,0.4038914]
[1642590049942,0.3718,3087.8,3087.6,0.05219983]
[1642590050141,0.3718,3087.8,3087.7,0.48226607]
[1642590050344,0.486364,3087.8,3087.7,2.677322]
[1642590050603,4.59452967,3087.8,3087.7,2.677322]
[1642590050796,0.51990098,3087.8,3086.6,0.03125]
[1642590051000,0.40533698,3087.8,3086.8,0.47]
[1642590051202,0.40533698,3087.8,3086.9,0.1295]
[1642590051203,0.03296856,3087.7,3086.9,0.1295]
[1642590051398,0.03296856,3087.7,3087.0,0.47]
[1642590051602,0.03240014,3087.6,3087.1,0.2916]
[1642590051803,0.03240014,3087.6,3087.2,0.47]
[1642590052002,0.03240014,3087.6,3087.4,1.0]
[1642590052207,0.03240014,3087.6,3087.5,5.62]
[1642590052401,1.37800134,3087.6,3087.5,9.61619029]
[1642590052602,0.3718,3087.8,3087.5,7.42106829]
[1642590052802,0.3718,3087.8,3087.5,6.98346843]
[1642590053002,0.3718,3087.8,3087.6,0.0329]
[1642590053202,0.3718,3087.8,3087.6,2.228022]
[1642590053401,0.3718,3087.8,3087.7,2.195122]
[1642590053604,2.31457978,3087.8,3087.7,2.22745358]
[1642590053802,2.31457978,3087.8,3087.7,9.17745358]
[1642590054442,2.31457978,3087.8,3087.7,6.98233158]
[1642590054646,0.3718,3087.8,3087.7,6.98233158]
[1642590055043,0.3718,3087.8,3087.7,14.34645358]
[1642590055444,0.3718,3087.8,3087.7,10.17745358]
[1642590055643,2.37741482,3087.8,3087.7,9.17745358]
[1642590055847,2.37741482,3087.8,3087.7,0.03233158]
[1642590055848,3.73394552,3087.8,3087.7,0.03233158]
[1642590056045,2.37741482,3087.8,3087.7,0.03233158]
[1642590057153,3.89629587,3087.8,3087.7,0.03233158]
[1642590057356,2.37741482,3087.8,3087.7,0.03233158]
[1642590058588,2.00561482,3087.8,3087.7,0.03233158]
[1642590058789,2.00561482,3087.8,3087.7,5.28233158]
[1642590058988,2.00561482,3087.8,3087.7,0.03233158]
[1642590059190,0.01234654,3088.7,3087.7,0.03233158]
[1642590059494,0.47,3089.0,3087.7,0.03233158]
[1642590059688,0.47,3089.4,3087.7,0.03233158]
[1642590060288,2.28215366,3088.4,3087.7,0.03233158]
[1642590060490,0.47,3089.4,3087.7,0.16183158]
[1642590060691,0.47,3089.4,3087.7,3.91109192]
[1642590060890,2.4815776,3089.6,3087.8,0.03176316]
[1642590061092,2.4815776,3089.6,3087.9,1.07719997]
[1642590061290,2.4815776,3089.6,3087.9,0.26769997]
[1642590061492,1.6887578,3089.0,3088.0,0.03062631]
[1642590062443,2.94192127,3089.0,3088.0,0.03062631]
[1642590062639,2.14146438,3088.5,3088.0,0.03062631]
[1642590063744,3.50042318,3088.5,3088.0,0.03062631]
[1642590064543,3.50042318,3088.5,3087.8,0.03176316]
[1642590064746,3.50042318,3088.5,3087.8,1.03176316]
[1642590064747,1.41576337,3088.0,3087.8,1.03176316]
[1642590065145,1.70605908,3087.9,3087.7,0.1295]
[1642590065581,1.70605908,3087.9,3087.8,0.03176316]
[1642590066484,0.47,3088.6,3087.9,0.04615221]
[1642590066683,0.47,3088.6,3087.8,0.03176316]
[1642590066883,0.47,3088.6,3088.0,0.03062631]
[1642590067083,0.47,3088.6,3087.7,0.03233158]
[1642590067282,1.80766568,3088.4,3087.7,0.03233158]
[1642590067488,1.80766568,3088.4,3087.8,0.1295]
[1642590067683,1.20820567,3088.2,3087.8,0.1295]
[1642590067887,1.20820567,3088.2,3087.9,0.03119473]
[1642590068285,1.20820567,3088.2,3087.7,0.03233158]
[1642590068887,0.47,3088.1,3087.7,0.03233158]
[1642590069526,1.20820567,3088.2,3087.7,0.03233158]
[1642590069726,0.389,3088.1,3087.7,0.03233158]
[1642590069930,0.389,3088.1,3085.9,0.1272]
[1642590069931,3.01273901,3087.8,3085.9,0.1272]
[1642590070133,3.01273901,3087.8,3084.8,3.2393803]
[1642590070134,0.01275478,3086.8,3084.9,1.62044]
[1642590070330,0.389,3086.7,3086.0,0.0096632]
[1642590070628,5.74108308,3086.6,3086.0,0.0096632]
[1642590070825,22.9913373,3086.5,3086.0,0.0096632]
[1642590071029,1.15286581,3086.4,3084.8,0.01648428]
[1642590071239,0.389,3086.3,3084.8,0.01648428]
[1642590071627,22.6023373,3086.2,3084.8,0.01648428]
[1642590071828,0.389,3086.1,3084.8,0.01648428]
[1642590072029,1.19963,3086.1,3084.8,0.01648428]
[1642590072228,1.08603007,3085.5,3084.8,0.01648428]
[1642590072429,3.75291733,3085.4,3084.9,0.1295]
[1642590072638,1.47503007,3085.5,3085.4,4.41407463]
[1642590073101,12.16214015,3085.5,3085.4,0.01307374]
[1642590073301,12.16214015,3085.5,3084.0,0.1295]
[1642590073302,6.95,3085.4,3084.0,0.1295]
[1642590073495,6.04226128,3085.3,3084.7,0.0170527]
[1642590073796,6.04226128,3085.3,3084.7,5.27e-05]
[1642590073797,25.10446997,3085.3,3084.7,5.27e-05]
[1642590073995,0.01586315,3085.2,3083.7,0.0096632]
[1642590074198,0.01586315,3085.2,3083.8,0.0001]
[1642590074199,1.33235369,3084.0,3083.8,0.0001]
[1642590074399,1.33235369,3084.0,3083.7,0.0096632]
[1642590074400,0.5187,3083.9,3083.7,0.0096632]
[1642590074599,0.389,3083.8,3083.7,0.0096632]
[1642590074798,0.39690522,3083.8,3083.7,0.0096632]
[1642590074996,0.389,3083.8,3083.7,0.0096632]
[1642590075598,0.389,3083.8,3083.7,2.8096632]
[1642590075797,0.1297,3085.0,3083.7,0.0096632]
[1642590075798,0.389,3084.5,3083.7,0.0096632]
[1642590076000,0.1295,3085.1,3084.1,0.04199055]
[1642590076197,0.13819997,3085.3,3084.2,0.1295]
[1642590076396,0.01415788,3084.9,3084.2,0.1295]
[1642590076724,0.01358946,3084.8,3084.1,0.1295]
[1642590077129,0.01302104,3084.7,3084.1,0.1295]
[1642590077531,0.26769997,3085.3,3084.2,1.67812647]
[1642590077532,0.01245261,3084.6,3084.2,1.67812647]
[1642590077734,0.01245261,3084.6,3084.3,3.89341918]
[1642590077931,0.01188419,3084.5,3084.4,6.95]
[1642590078130,0.1295,3086.0,3084.5,6.95]
[1642590078332,0.1295,3086.1,3084.6,3.889968]
[1642590078533,0.00625266,3085.6,3084.9,1.62064]
[1642590078933,0.00568423,3085.5,3084.9,1.62064]
[1642590079129,0.00568423,3085.5,3085.2,0.8102378]
[1642590079332,0.1295,3086.6,3085.3,0.1295]
[1642590079333,0.00511581,3085.4,3085.3,0.1295]
[1642590079531,0.00511581,3085.4,3085.3,8.0187]
[1642590079730,0.00511581,3085.4,3085.3,8.1482]
[1642590079930,0.00511581,3085.4,3085.3,10.76861]
[1642590080775,0.00511581,3085.4,3085.3,11.06861]
[1642590080977,0.00511581,3085.4,3085.3,10.25843]
[1642590081177,0.00511581,3085.4,3085.3,14.70407543]
[1642590081381,0.1295,3086.6,3085.7,0.8099945]
[1642590081581,0.1295,3087.1,3086.1,0.80998]
[1642590081779,0.40159457,3087.7,3086.1,0.80998]
[1642590081780,0.01749477,3087.2,3086.2,10.74942517]
[1642590081982,0.01749477,3087.2,3086.3,0.07230294]
[1642590082180,0.00284211,3087.0,3086.4,0.09374]
[1642590082579,0.00227369,3086.9,3086.4,0.90362]
[1642590082982,2.04366167,3087.3,3086.4,0.90362]
[1642590082983,0.00170527,3086.8,3086.4,0.90362]
[1642590083382,0.00113684,3086.7,3086.4,0.90362]
[1642590083685,3.83039361,3088.4,3086.6,8.5695]
[1642590083686,0.1295,3088.3,3086.6,8.5695]
[1642590083886,0.01202916,3087.8,3086.7,0.19297784]
[1642590084082,0.0282,3088.4,3086.5,0.00113685]
[1642590084083,0.00397897,3087.4,3086.5,0.01332447]
[1642590084327,0.00397897,3087.4,3086.6,0.1295]
[1642590084527,0.00397897,3087.4,3086.5,0.01332447]
[1642590084528,0.00341055,3087.3,3086.7,0.8098331]
[1642590084932,0.00284212,3087.2,3086.9,0.80983]
[1642590085133,0.00284212,3087.2,3086.6,1.74918]
[1642590085333,0.0022737,3087.1,3086.6,1.74918]
[1642590085537,0.0022737,3087.1,3086.8,0.3]
[1642590085733,0.00170527,3087.0,3086.8,1.91946]
[1642590085931,0.00170527,3087.0,3086.8,1.61946]
[1642590086135,1.84246774,3087.4,3086.9,0.3]
[1642590086334,1.84246774,3087.4,3086.9,1.91947]
[1642590086535,0.00341055,3087.3,3086.9,0.3]
[1642590086934,0.00284212,3087.2,3086.8,1.10983]
[1642590087135,0.00284212,3087.2,3086.9,0.8097554]
[1642590087337,7.37e-05,3087.1,3087.0,0.3]
[1642590087542,0.1295,3088.3,3087.1,0.0008]
[1642590087738,0.1295,3089.0,3087.4,1.6191134]
[1642590087977,0.1295,3089.0,3087.5,3.6036719]
[1642590087978,0.00625266,3088.2,3087.5,3.6036719]
[1642590088182,0.00625266,3088.2,3087.8,0.01248461]
[1642590088380,8.423e-05,3088.1,3087.9,0.389]
[1642590088580,0.05,3089.7,3088.1,6.9]
[1642590088783,0.05,3089.7,3088.5,1.6182053]
[1642590088983,0.00738951,3089.4,3088.5,1.6182053]
[1642590089181,0.1293,3089.3,3088.6,0.8091027]
[1642590089387,0.13612108,3089.3,3088.1,6.9]
[1642590089582,1.68460829,3089.2,3087.9,2.42890591]
[1642590089782,1.68460829,3089.2,3087.9,0.81066261]
[1642590089783,0.1295,3089.1,3087.9,0.81066261]
[1642590090088,0.00511581,3089.0,3087.9,0.00105261]
[1642590090288,0.00511581,3089.0,3087.5,0.1295]
[1642590090289,7.0295,3088.9,3087.5,0.1295]
[1642590090485,7.0295,3088.9,3087.6,0.00284211]
[1642590090486,0.0125381,3088.5,3087.6,0.00284211]
[1642590090792,1.13523243,3087.8,3087.6,0.00284211]
[1642590090985,2.4637909,3087.7,3087.6,0.00284211]
[1642590091185,2.3342909,3087.7,3087.6,0.00284211]
[1642590091383,2.3342909,3087.7,3087.6,4.80284211]
[1642590091843,0.13168946,3088.3,3087.6,4.80284211]
[1642590092045,0.00218946,3088.3,3087.7,0.0658097]
[1642590092346,0.00162104,3088.2,3087.7,0.18081471]
[1642590092542,0.00162104,3088.2,3087.9,0.05835083]
[1642590092746,0.1295,3089.3,3087.9,0.05835083]
[1642590092747,2.20018334,3088.1,3088.0,0.17861631]
[1642590092945,2.20018334,3088.1,3087.9,1.81922]
[1642590093143,2.20018334,3088.1,3087.9,0.2002]
[1642590093546,6.5295,3088.0,3087.4,0.1295]
[1642590093747,6.5295,3088.0,3087.1,0.0008]
[1642590093945,2.28220426,3087.4,3087.1,0.0008]
[1642590095043,2.28220426,3087.4,3087.1,2.75786363]
[1642590095884,2.28220426,3087.4,3087.2,3.64423096]
[1642590096077,2.30203958,3087.6,3087.4,7.70962]
[1642590096276,0.00113685,3087.9,3087.5,13.29660101]
[1642590096477,0.00113685,3087.9,3087.6,2.75706363]
[1642590096677,0.00113685,3087.9,3087.6,3.18266363]
[1642590096880,0.00113685,3087.9,3087.7,2.75706363]
[1642590097081,3.685e-05,3087.9,3087.8,10.44610374]
[1642590097285,0.18819997,3089.7,3088.2,1.61866]
[1642590097286,1.88788496,3088.8,3088.2,1.61866]
[1642590097485,2.6110776,3089.6,3088.4,0.80932]
[1642590097684,0.00511581,3088.8,3088.4,0.80932]
[1642590097882,0.00511581,3088.8,3088.5,0.4293]
[1642590098083,0.00454738,3088.7,3088.5,2.8571588]
[1642590098284,2.6110776,3089.6,3088.9,0.0651801]
[1642590098488,2.4815776,3089.6,3089.0,0.1293]
[1642590098690,1.535123,3090.2,3089.5,6.9]
[1642590098888,0.10341847,3091.1,3090.1,0.01271994]
[1642590098889,0.1293,3091.0,3090.1,0.01271994]
[1642590099086,0.10341847,3091.1,3090.2,0.1293]
[1642590099343,0.1293,3091.0,3090.3,0.80885]
[1642590099539,2.14059244,3090.4,3090.2,0.05525486]
[1642590099744,2.14059244,3090.4,3090.1,2.09901]
[1642590099943,0.00454739,3090.3,3090.1,2.09901]
[1642590100239,0.00397897,3090.2,3090.1,2.09901]
[1642590100741,0.00397897,3090.2,3090.1,0.4814]
[1642590101344,1.18529256,3090.2,3090.1,0.1857]
[1642590101947,1.18529256,3090.2,3089.1,0.00227369]
[1642590101948,1.61459256,3090.2,3089.1,0.00227369]
[1642590102150,1.46917765,3089.2,3089.1,0.00227369]
[1642590102345,1.46917765,3089.2,3088.9,0.00341054]
[1642590102545,1.46917765,3089.2,3088.4,0.00625266]
[1642590102746,1.46917765,3089.2,3088.1,0.00795793]
[1642590103034,0.1295,3089.4,3088.1,0.81745793]
[1642590103215,2.42608152,3089.4,3088.2,6.42005625]
[1642590103512,0.00341054,3090.1,3088.2,6.42005625]
[1642590103513,0.1295,3090.0,3088.8,0.01235875]
[1642590103718,0.1295,3090.0,3088.9,0.1293]
[1642590103911,0.0022737,3089.9,3088.9,0.13271054]
[1642590104115,0.1293,3090.6,3089.5,0.0121797]
[1642590104315,1.23750356,3090.5,3089.6,0.05435449]
[1642590104513,1.23750356,3090.5,3089.6,0.00170528]
[1642590104514,0.1293,3090.4,3089.6,0.00170528]
[1642590104813,0.00227369,3090.3,3089.6,0.00170528]
[1642590105111,0.00170527,3090.2,3089.6,0.00170528]
[1642590105512,0.00113684,3090.1,3089.6,0.00170528]
[1642590105914,1.9548663,3089.9,3089.6,0.00170528]
[1642590106932,1.9548663,3089.9,3089.6,0.80913]
[1642590107132,0.1293,3090.2,3089.6,0.80913]
[1642590107333,0.00227369,3090.3,3089.7,0.05349112]
[1642590107534,0.00113684,3090.1,3089.7,3.69354731]
[1642590107736,0.00170527,3090.2,3089.7,0.00113685]
[1642590107934,0.13327896,3090.6,3089.8,0.80897]
[1642590108134,1.84957201,3090.1,3089.9,0.80898]
[1642590108335,1.84957201,3090.1,3089.7,0.00113685]
[1642590109339,0.00113684,3090.1,3089.8,0.06521846]
[1642590109535,0.00113684,3090.1,3089.8,1.61794]
[1642590109936,0.00113684,3090.1,3089.8,3.2358738]
[1642590110136,0.00113684,3090.1,3089.9,3.84964145]
[1642590110337,0.00113684,3090.1,3089.9,0.8089569]
[1642590110585,0.00113684,3090.1,3089.9,1.6179169]
[1642590111385,0.00113684,3090.1,3089.8,2.49804]
[1642590111589,0.00113684,3090.1,3089.8,3.2358016]
[1642590112390,1.75822381,3090.1,3089.8,3.2358016]
[1642590112789,0.00113684,3090.1,3089.8,3.2358016]
[1642590113991,0.00113684,3090.1,3089.8,4.0448016]
[1642590114625,0.00113684,3090.1,3089.9,0.80896]
[1642590115024,1.60024073,3091.0,3089.9,7.70896]
[1642590115225,0.1293,3091.0,3090.0,0.05830324]
[1642590115426,0.00113685,3090.3,3089.9,6.9]
[1642590116024,1.89037547,3090.1,3089.9,6.9]
[1642590116227,0.00113685,3090.3,3089.9,6.9]
[1642590116425,0.00113685,3090.3,3089.9,7.0293]
[1642590116835,0.00113685,3090.3,3089.9,0.1293]
[1642590117034,0.00113685,3090.3,3089.7,1.89361745]
[1642590117035,0.00113685,3090.3,3089.7,0.27553685]
[1642590117233,1.23561376,3089.8,3089.7,0.27553685]
[1642590117433,1.23561376,3089.8,3089.7,0.2744]
[1642590118283,2.0569244,3089.9,3089.7,0.2744]
[1642590118685,2.0569244,3089.9,3089.8,5.85170527]
[1642590119086,2.0569244,3089.9,3089.8,0.00170527]
[1642590119986,2.0569244,3089.9,3089.7,0.23922998]
[1642590120591,0.1293,3089.8,3089.7,0.23922998]
[1642590121588,0.07498503,3089.8,3089.7,0.23922998]
[1642590122333,2.1862244,3089.9,3089.7,0.23922998]
[1642590123432,2.0569244,3089.9,3089.7,0.23922998]
[1642590125780,0.00113685,3090.3,3089.7,0.23922998]
[1642590125985,0.00113685,3090.3,3089.8,0.80906]
[1642590126187,0.0022737,3090.2,3089.8,1.6181114]
[1642590126384,0.0022737,3090.2,3089.8,1.9181114]
[1642590126583,0.00170527,3090.1,3089.8,1.6181114]
[1642590126983,0.00113685,3090.0,3089.8,1.6181114]
[1642590127389,2.2604983,3090.4,3089.8,2.4271214]
[1642590127585,2.2604983,3090.4,3090.0,0.8089]
[1642590127886,0.00170527,3090.3,3090.2,6.9]
[1642590128286,0.00511581,3090.9,3090.2,10.47735363]
[1642590128487,0.00511581,3090.9,3090.4,0.80886]
[1642590128788,0.00454739,3090.8,3090.3,0.8088591]
[1642590129230,0.00397896,3090.7,3090.3,0.8088591]